bitfinex-derivatives/quotes_SOLF0:USTF0_20241203
["timestamp","ask_amount","ask_price","bid_price","bid_amount"]
[1733184886382,4.247,226.47,226.42,2.2074]
[1733184886577,2.04,226.47,226.35,12.70310433]
[1733184886885,2.04,226.47,226.36,9.50801104]
[1733184887083,2.04,226.47,226.41,2.2075]
[1733184887980,2.2071,226.46,226.41,2.2075]
[1733184888185,2.04,226.47,226.42,2.2074]
[1733184889387,4.2471,226.47,226.42,2.2074]
[1733184889788,4.2471,226.47,226.41,2.2075]
[1733184890087,2.04,226.47,226.38,10.30639433]
[1733184890288,2.04,226.47,226.39,3.66214905]
[1733184890481,2.04,226.47,226.44,2.2072]
[1733184890784,2.04,226.47,226.38,10.30639433]
[1733184890987,2.2069,226.49,226.39,9.52095976]
[1733184891182,2.04,226.48,226.4,3.66203237]
[1733184891383,2.04,226.48,226.38,10.30639433]
[1733184891580,6.59668618,226.47,226.39,10.25977414]
[1733184891786,6.59668618,226.47,226.39,6.59668618]
[1733184891988,6.59668618,226.47,226.41,6.59668618]
[1733184892385,6.59668618,226.47,226.43,2.2073]
[1733184892592,6.59668618,226.45,226.35,0.33671]
[1733184892790,6.59668618,226.45,226.4,2.2076]
[1733184893385,8.80398618,226.45,226.4,2.2076]
[1733184893789,2.2073,226.44,226.36,6.59668618]
[1733184893990,2.04,226.43,226.37,3.66681666]
[1733184894186,2.04,226.43,226.36,6.59668618]
[1733184894486,8.63668618,226.43,226.35,0.33671]
[1733184894686,6.59668618,226.41,226.36,3.66746406]
[1733184894886,6.59668618,226.41,226.35,0.33671]
[1733184895090,8.80428618,226.41,226.36,5.87541005]
[1733184895389,6.59668618,226.41,226.36,2.208]
[1733184895582,2.2076,226.41,226.36,2.208]
[1733184895983,2.04,226.43,226.35,0.33671]
[1733184896190,2.2079,226.38,226.35,0.33671]
[1733184896389,2.04,226.37,226.35,0.33671]
[1733184898496,2.04,226.37,226.36,2.208]
[1733184900687,10.31269523,226.49,226.32,10.31269523]
[1733184900891,2.04,226.48,226.32,10.31269523]
[1733184901091,2.2076,226.41,226.32,10.31269523]
[1733184901293,2.04,226.4,226.36,2.208]
[1733184901498,2.04,226.4,226.32,10.31269523]
[1733184901894,2.04,226.4,226.37,2.2079]
[1733184902099,2.04,226.4,226.32,10.31269523]
[1733184902395,2.04,226.4,226.37,2.2079]
[1733184902589,2.04,226.4,226.32,10.31269523]
[1733184902788,10.31269523,226.49,226.32,10.31269523]
[1733184902990,2.04,226.48,226.35,10.31269523]
[1733184903198,2.04,226.47,226.38,10.31269523]
[1733184903498,2.04,226.47,226.43,2.2073]
[1733184904293,4.247,226.47,226.42,2.2074]
[1733184904693,2.04,226.47,226.38,10.31269523]
[1733184904893,2.04,226.47,226.35,10.31269523]
[1733184905298,2.2075,226.42,226.37,2.2079]
[1733184905603,4.2475,226.42,226.37,2.2079]
[1733184906001,2.04,226.42,226.38,2.2078]
[1733184906402,2.04,226.42,226.35,10.31269523]
[1733184906598,11.69539523,226.5,226.38,10.31269523]
[1733184906794,2.04,226.49,226.38,10.31269523]
[1733184906997,1.3827,226.5,226.38,10.31269523]
[1733184907201,2.04,226.49,226.38,10.31269523]
[1733184907801,4.2468,226.49,226.38,10.31269523]
[1733184907997,4.2468,226.49,226.38,12.97429523]
[1733184908199,2.04,226.49,226.41,10.31269523]
[1733184908796,2.04,226.49,226.46,2.2071]
[1733184909102,2.04,226.52,226.44,10.31269523]
[1733184910010,2.04,226.52,226.49,2.2068]
[1733184910398,2.04,226.52,226.44,10.31269523]
[1733184910598,2.04,226.54,226.47,10.31269523]
[1733184911396,1.3477,226.6,226.5,10.31269523]
[1733184911609,2.06,226.59,226.5,10.31269523]
[1733184912598,2.06,226.59,226.38,6.98848311]
[1733184912599,10.31269523,226.58,226.38,6.98848311]
[1733184912909,10.31269523,226.58,226.42,10.31269523]
[1733184913106,2.2062,226.55,226.42,10.31269523]
[1733184913294,2.06,226.54,226.42,10.31269523]
[1733184914305,2.06,226.54,226.45,10.31269523]
[1733184915006,12.37269523,226.54,226.42,10.31269523]
[1733184915307,12.37269523,226.54,226.39,10.31269523]
[1733184915506,12.37269523,226.54,226.45,2.2071]
[1733184917604,10.31269523,226.48,226.41,2.2075]
[1733184917799,2.06,226.47,226.33,12.37269523]
[1733184918203,10.31269523,226.45,226.3,10.31269523]
[1733184918410,10.31269523,226.45,226.31,12.19756603]
[1733184918611,10.31269523,226.45,226.33,10.31269523]
[1733184918811,2.2073,226.44,226.38,2.2078]
[1733184919201,2.06,226.47,226.37,2.2079]
[1733184919202,2.2074,226.43,226.37,2.2079]
[1733184919401,2.06,226.42,226.33,10.31269523]
[1733184919602,2.06,226.41,226.33,10.31269523]
[1733184921909,4.2676,226.41,226.33,10.31269523]
[1733184922102,2.06,226.41,226.31,2.6643]
[1733184923107,2.2077,226.4,226.34,2.2082]
[1733184923508,2.06,226.41,226.31,2.6643]
[1733184923708,2.2078,226.39,226.33,2.2083]
[1733184924103,2.2077,226.4,226.34,2.2082]
[1733184924509,2.06,226.41,226.31,2.6643]
[1733184924707,10.31269523,226.48,226.33,10.31269523]
[1733184924907,2.06,226.47,226.36,10.31269523]
[1733184926206,2.06,226.47,226.33,12.37269523]
[1733184927015,2.2074,226.43,226.37,2.2078]
[1733184927311,2.06,226.42,226.33,10.31269523]
[1733184927510,2.06,226.41,226.33,10.31269523]
[1733184927705,2.06,226.41,226.36,2.208]
[1733184928113,2.06,226.41,226.33,10.31269523]
[1733184928309,2.06,226.41,226.38,2.2078]
[1733184928814,2.06,226.41,226.34,10.31269523]
[1733184929914,2.06,226.41,226.38,2.2078]
[1733184930311,2.06,226.41,226.34,10.31269523]
[1733184930506,2.06,226.41,226.4,12.52029523]
[1733184931716,2.06,226.44,226.42,2.2074]
[1733184931916,2.06,226.44,226.37,10.31269523]
[1733184932112,4.2673,226.44,226.38,2.2078]
[1733184932620,2.06,226.44,226.38,2.2078]
[1733184932816,2.2074,226.43,226.38,2.2078]
[1733184933318,2.06,226.42,226.34,10.31269523]
[1733184933919,2.06,226.42,226.36,2.208]
[1733184934113,4.2675,226.42,226.36,2.208]
[1733184934313,4.2675,226.42,226.34,10.31269523]
[1733184934509,2.06,226.42,226.34,10.31269523]
[1733184935312,2.6736,226.48,226.37,10.31269523]
[1733184935515,2.06,226.47,226.31,2.6643]
[1733184935710,2.06,226.47,226.38,10.31269523]
[1733184936619,57.45024094,226.52,226.38,10.31269523]
[1733184936816,2.207,226.47,226.41,2.2075]
[1733184937024,2.06,226.46,226.38,10.31269523]
[1733184937528,2.06,226.46,226.4,2.2076]
[1733184938428,2.06,226.45,226.41,2.2075]
[1733184938619,57.45024094,226.52,226.38,10.31269523]
[1733184938620,2.06,226.46,226.38,10.31269523]
[1733184938822,2.06,226.46,226.41,10.31269523]
[1733184939622,55.20665596,226.52,226.41,10.31269523]
[1733184939829,2.06,226.5,226.41,10.31269523]
[1733184940225,2.06,226.5,226.45,2.2071]
[1733184941125,2.2069,226.49,226.44,2.2072]
[1733184941432,2.06,226.5,226.31,2.6643]
[1733184941724,2.06,226.5,226.4,2.2076]
[1733184942130,2.06,226.5,226.37,10.31269523]
[1733184942321,12.37269523,226.5,226.39,2.2077]
[1733184942930,2.2073,226.44,226.39,2.2077]
[1733184943131,2.2073,226.44,226.37,10.31269523]
[1733184943132,2.1,226.44,226.4,2.2076]
[1733184943628,4.3073,226.44,226.39,2.2077]
[1733184944727,2.1,226.44,226.37,10.31269523]
[1733184948729,2.1,226.44,226.4,2.2076]
[1733184948931,2.1,226.44,226.37,10.31269523]
[1733184949126,2.1,226.44,226.41,2.2075]
[1733184949331,57.43132831,226.52,226.37,10.31269523]
[1733184949636,2.1,226.48,226.37,10.31269523]
[1733184949833,2.207,226.47,226.37,10.31269523]
[1733184950332,2.207,226.47,226.41,2.2075]
[1733184950531,2.1,226.48,226.37,10.31269523]
[1733184950827,2.1,226.48,226.43,10.31269523]
[1733184952230,2.2067,226.5,226.43,10.31269523]
[1733184952831,2.1,226.52,226.4,10.31269523]
[1733184953231,2.207,226.47,226.42,2.2074]
[1733184953427,4.307,226.47,226.42,2.2074]
[1733184953934,2.1,226.47,226.37,11.62619523]
[1733184954331,2.1,226.47,226.38,2.2078]
[1733184954931,2.2074,226.43,226.38,2.2078]
[1733184956127,12.41269523,226.47,226.35,0.32629]
[1733184957330,2.2074,226.43,226.35,0.32629]
[1733184957633,2.1,226.42,226.35,0.32629]
[1733184958027,2.1,226.42,226.39,2.2078]
[1733184958229,2.1,226.42,226.37,10.31269523]
[1733184958431,2.1,226.46,226.37,10.31269523]
[1733184958734,4.3071,226.46,226.37,10.31269523]
[1733184959036,2.1,226.46,226.37,10.31269523]
[1733184959330,4.3071,226.46,226.41,2.2075]
[1733184960535,4.3071,226.46,226.42,2.2075]
[1733184962833,308.412776,226.57,226.43,10.31269523]
[1733184963133,2.1,226.55,226.43,10.31269523]
[1733184963438,2.2067,226.51,226.46,2.2071]
[1733184965431,55.75391659,226.59,226.49,10.31269523]
[1733184965635,2.1,226.58,226.52,10.31269523]
[1733184965941,55.75391659,226.59,226.52,10.31269523]
[1733184966240,308.412776,226.6,226.55,10.31269523]
[1733184966431,2.1,226.63,226.55,10.31269523]
[1733184966938,4.3054,226.63,226.57,2.206]
[1733184967537,2.1,226.63,226.52,10.31269523]
[1733184968133,2.1,226.63,226.49,10.31269523]
[1733184968336,10.31269523,226.62,226.49,10.31269523]
[1733184968741,2.2058,226.59,226.53,2.2064]
[1733184968941,2.08,226.58,226.53,2.2064]
[1733184969242,4.2859,226.58,226.52,2.2065]
[1733184969832,2.2061,226.56,226.5,2.2067]
[1733184970041,2.08,226.58,226.46,12.41269523]
[1733184970739,2.2063,226.54,226.47,2.2069]
[1733184970941,2.08,226.53,226.47,2.2069]
[1733184971142,2.08,226.53,226.43,10.31269523]
[1733184971343,2.08,226.53,226.46,2.2071]
[1733184973043,4.2864,226.53,226.46,2.207]
[1733184973943,2.2065,226.52,226.46,2.207]
[1733184974439,2.08,226.53,226.48,2.2069]
[1733184974646,4.2864,226.53,226.48,2.2069]
[1733184975143,4.2864,226.53,226.43,10.31269523]
[1733184975344,2.08,226.53,226.43,10.31269523]
[1733184976942,4.2865,226.52,226.46,2.207]
[1733184977649,4.2865,226.52,226.43,10.31269523]
[1733184977650,2.08,226.52,226.43,10.31269523]
[1733184977946,2.08,226.52,226.37,10.31269523]
[1733184978244,2.2072,226.46,226.37,10.31269523]
[1733184978446,2.08,226.45,226.37,10.31269523]
[1733184979642,2.08,226.45,226.36,0.23448]
[1733184979848,1.2786,226.44,226.36,0.23448]
[1733184980047,2.2077,226.4,226.36,0.23448]
[1733184980245,2.08,226.39,226.36,0.23448]
[1733184982349,2.208,226.37,226.36,0.23448]
[1733184982551,2.08,226.39,226.36,0.23448]
[1733184985048,2.2079,226.38,226.36,0.23448]
[1733184985650,2.08,226.43,226.36,0.23448]
[1733184986052,4.2874,226.43,226.38,2.2078]
[1733184986450,4.2874,226.43,226.36,0.23448]
[1733184986649,4.2874,226.43,226.38,2.2078]
[1733184987153,2.2074,226.43,226.38,2.2078]
[1733184987348,2.08,226.42,226.39,2.2077]
[1733184988150,4.2875,226.42,226.39,2.2077]
[1733184988357,4.2875,226.42,226.37,2.2079]
[1733184988660,2.2077,226.4,226.36,0.23448]
[1733184988857,2.08,226.42,226.36,0.23448]
[1733184989258,2.2078,226.39,226.36,0.23448]
[1733184989958,2.2079,226.38,226.36,0.23448]
[1733184990355,4.28175445,226.42,226.36,0.23448]
[1733184990555,2.2079,226.38,226.36,0.23448]
[1733184991051,2.08,226.37,226.36,0.23448]
[1733184991559,4.288,226.37,226.36,0.23448]
[1733184992354,2.08,226.37,226.36,0.23448]
[1733184993056,2.08,226.37,226.36,2.44248]
[1733184993265,1.3698,226.46,226.36,0.23448]
[1733184993455,2.08,226.42,226.38,10.31269523]
[1733184993654,2.08,226.42,226.41,2.2076]
[1733184993959,2.08,226.43,226.38,10.31269523]
[1733184994358,2.08,226.43,226.42,2.2074]
[1733184994855,2.08,226.45,226.41,10.31269523]
[1733184995261,2.7122,226.52,226.41,10.31269523]
[1733184995760,2.08,226.51,226.41,10.31269523]
[1733184995959,2.207,226.47,226.43,2.2073]
[1733184996155,2.08,226.46,226.41,10.31269523]
[1733184996362,2.08,226.45,226.41,10.31269523]
[1733184996665,2.08,226.45,226.42,2.2074]
[1733184997156,2.08,226.45,226.43,2.2073]
[1733184997363,2.08,226.45,226.41,10.31269523]
[1733184997561,2.08,226.45,226.42,2.2074]
[1733185000068,4.2872,226.45,226.41,10.31269523]
[1733185000261,2.08,226.45,226.41,10.31269523]
[1733185000466,2.08,226.45,226.42,2.2074]
[1733185000867,2.08,226.45,226.41,10.31269523]
[1733185002066,2.08,226.45,226.42,2.2075]
[1733185002267,2.08,226.45,226.41,10.31269523]
[1733185003173,2.2073,226.44,226.4,2.2076]
[1733185003375,2.08,226.45,226.38,10.31269523]
[1733185003567,2.2073,226.44,226.33,2.6846]
[1733185003774,2.2073,226.44,226.37,10.31269523]
[1733185004065,2.08,226.45,226.37,10.31269523]
[1733185004272,2.08,226.45,226.41,2.2076]
[1733185004667,2.08,226.45,226.37,10.31269523]
[1733185004871,4.2872,226.45,226.39,2.2077]
[1733185005274,4.2872,226.45,226.37,10.31269523]
[1733185005472,4.2872,226.45,226.4,2.2077]
[1733185006273,2.08,226.45,226.37,10.31269523]
[1733185006573,2.08,226.45,226.36,2.208]
[1733185007967,2.08,226.45,226.32,0.40806]
[1733185008369,2.2079,226.39,226.32,2.61636]
[1733185008569,2.08,226.38,226.32,0.40806]
[1733185008970,2.08,226.38,226.33,2.2083]
[1733185009166,4.2879,226.38,226.33,2.2083]
[1733185009365,4.2879,226.38,226.32,0.40806]
[1733185009876,4.2879,226.38,226.32,2.61646]
[1733185010774,2.208,226.37,226.32,2.61646]
[1733185011074,2.08,226.38,226.32,0.40806]
[1733185011570,10.31269523,226.34,226.2,10.31269523]
[1733185011772,4.8022,226.33,226.2,10.31269523]
[1733185012074,2.2087,226.3,226.22,2.2094]
[1733185012265,4.8022,226.33,226.2,10.31269523]
[1733185012776,2.2089,226.28,226.22,2.2094]
[1733185012970,2.08,226.27,226.2,10.31269523]
[1733185013475,2.08,226.27,226.22,2.2093]
[1733185014974,2.08,226.27,226.2,10.31269523]
[1733185015674,2.08,226.27,226.23,2.2093]
[1733185016672,2.08,226.27,226.2,10.31269523]
[1733185016673,2.08,226.27,226.22,2.2094]
[1733185017477,2.2091,226.26,226.2,12.52219523]
[1733185017679,2.08,226.27,226.17,11.69849523]
[1733185018077,2.2092,226.25,226.19,2.2096]
[1733185018784,2.2092,226.24,226.19,2.2096]
[1733185018979,2.2092,226.24,226.18,2.2098]
[1733185019284,2.22681416,226.26,226.17,10.31269523]
[1733185019580,2.2091,226.25,226.17,10.31269523]
[1733185020285,2.2091,226.25,226.2,2.2096]
[1733185021183,2.22681416,226.26,226.14,10.31269523]
[1733185021380,2.08,226.27,226.17,10.31269523]
[1733185021775,2.08,226.27,226.19,2.2096]
[1733185022078,4.31917832,226.27,226.19,2.2096]
[1733185022383,2.08,226.27,226.13,10.31269523]
[1733185022581,4.25467495,226.27,226.13,10.31269523]
[1733185022877,2.08,226.27,226.13,10.31269523]
[1733185023083,2.08,226.27,226.1,10.72176523]
[1733185023084,10.31269523,226.25,226.1,10.72176523]
[1733185023287,2.2101,226.16,226.12,2.2104]
[1733185023582,2.08,226.15,226.1,0.40907]
[1733185023782,2.08,226.14,226.1,0.40907]
[1733185024085,2.08,226.13,226.1,0.40907]
[1733185025483,2.08,226.13,225.94,4.32815005]
[1733185025484,4.34205925,226.13,225.94,4.32815005]
[1733185025676,4.34205925,226.13,225.95,19.85981689]
[1733185025677,10.31269523,226.11,225.95,19.85981689]
[1733185025877,10.31269523,226.08,225.96,16.8910614]
[1733185026083,2.08,226.07,225.97,9.54712166]
[1733185026382,2.08,226.07,225.98,19.85981689]
[1733185026685,2.08,226.07,225.99,9.54068654]
[1733185026985,2.08,226.07,226.0,3.67196987]
[1733185027181,2.08,226.07,226.02,2.2114]
[1733185027883,4.2909,226.07,226.02,2.2114]
[1733185028277,2.2109,226.07,226.02,2.2114]
[1733185028480,2.08,226.06,225.98,10.31269523]
[1733185028676,2.08,226.06,225.99,3.66210756]
[1733185028884,2.08,226.06,225.98,10.31269523]
[1733185029083,2.08,226.06,225.99,3.66214112]
[1733185029286,2.08,226.06,226.0,2.2115]
[1733185030481,2.08,226.06,225.98,10.31269523]
[1733185030687,4.291,226.06,226.01,2.2115]
[1733185031482,2.2106,226.11,226.04,2.2111]
[1733185031683,1.294,226.2,226.07,10.31269523]
[1733185031891,2.2,226.19,226.07,10.31269523]
[1733185032087,20.62539046,226.08,225.63,6.03592952]
[1733185032284,10.31269523,225.97,225.82,10.31269523]
[1733185032483,10.31269523,226.05,225.83,16.80501537]
[1733185032484,10.31269523,225.94,225.83,16.80501537]
[1733185032690,2.2,225.93,225.84,16.80501537]
[1733185032889,2.22684403,225.92,225.85,16.80501537]
[1733185033085,2.22684403,225.92,225.86,9.49848695]
[1733185033391,2.22684403,225.92,225.87,3.65326421]
[1733185033392,2.2127,225.89,225.87,3.65326421]
[1733185033593,2.2127,225.89,225.78,10.31269523]
[1733185033594,2.2,225.88,225.78,10.31269523]
[1733185033788,2.2,225.88,225.81,2.2134]
[1733185033987,2.2,225.88,225.72,2.2]
[1733185034287,2.2,225.88,225.57,4.4314]
[1733185034288,2.2133,225.83,225.73,5.73661528]
[1733185034587,2.2,225.82,225.69,10.31269523]
[1733185034789,10.31269523,225.81,225.7,3.51874484]
[1733185035092,10.31269523,225.81,225.69,2.2145]
[1733185035293,2.2,225.82,225.69,10.31269523]
[1733185035592,2.2,225.82,225.73,2.2141]
[1733185036192,2.2,225.82,225.68,16.58698638]
[1733185036389,2.2,225.82,225.69,9.12768442]
[1733185036585,2.2,225.82,225.68,16.58698638]
[1733185036586,2.2,225.82,225.7,9.12768442]
[1733185036786,2.2,225.82,225.71,3.51064785]
[1733185036984,2.2,225.82,225.72,3.51064785]
[1733185037288,2.2,225.82,225.71,2.2143]
[1733185037494,4.4134,225.82,225.71,2.2143]
[1733185037685,4.4134,225.82,225.72,3.4641827]
[1733185037891,4.4134,225.82,225.71,2.2143]
[1733185038090,4.4134,225.82,225.72,2.2143]
[1733185038388,4.4134,225.82,225.72,3.5931]
[1733185038895,2.2135,225.81,225.72,1.3788]
[1733185039294,2.2135,225.81,225.73,3.45637106]
[1733185039494,2.2,225.82,225.72,1.3788]
[1733185039495,2.2136,225.8,225.72,1.3788]
[1733185040395,2.2136,225.8,225.73,3.45407174]
[1733185040586,4.4134,225.82,225.72,1.3788]
[1733185040786,2.22,225.81,225.73,3.45408553]
[1733185040992,2.22,225.81,225.74,3.45408553]
[1733185041289,2.22,225.81,225.72,1.3788]
[1733185041494,2.22,225.81,225.77,2.2138]
[1733185041897,2.22,225.81,225.72,17.96578638]
[1733185042092,2.22,225.81,225.73,8.97103439]
[1733185042296,2.22,225.81,225.72,17.96578638]
[1733185042297,2.22,225.81,225.74,8.97103439]
[1733185042493,2.22,225.81,225.75,3.45039784]
[1733185042695,2.22,225.81,225.76,3.45039784]
[1733185042895,2.22,225.81,225.72,17.96578638]
[1733185043095,2.22,225.81,225.79,2.2136]
[1733185043896,2.2128,225.88,225.8,2.2135]
[1733185043897,2.22,225.85,225.8,2.2135]
[1733185044693,2.22,225.85,225.81,2.2134]
[1733185044889,2.22,225.85,225.72,17.96578638]
[1733185045096,2.22,225.85,225.73,15.86154692]
[1733185045308,2.22,225.85,225.81,2.2134]
[1733185045494,2.22,225.85,225.72,17.96578638]
[1733185045695,2.22,225.85,225.73,15.86071773]
[1733185045894,2.22,225.85,225.74,15.86071773]
[1733185046099,2.22,225.85,225.75,8.9647535]
[1733185046293,2.22,225.85,225.76,8.9647535]
[1733185046499,2.22,225.85,225.77,3.44798211]
[1733185046795,2.22,225.85,225.78,3.44798211]
[1733185046997,2.22,225.85,225.79,1.3665]
[1733185047302,2.22,225.89,225.79,1.3665]
[1733185047496,2.22,225.89,225.8,3.44990828]
[1733185047690,18.79918638,225.94,225.79,1.3665]
[1733185047691,2.22,225.91,225.79,1.3665]
[1733185047891,2.22,225.91,225.8,20.03647882]
[1733185048095,2.22,225.95,225.81,8.9668391]
[1733185048398,2.22,225.95,225.88,2.2127]
[1733185048695,16.58698638,226.02,225.84,16.58698638]
[1733185048893,16.58698638,226.02,225.81,2.22]
[1733185048894,2.22,226.02,225.88,16.58698638]
[1733185049090,2.22,226.02,225.89,3.44938194]
[1733185049297,2.22,226.02,225.9,8.96963258]
[1733185049494,2.22,226.02,225.96,2.2119]
[1733185049894,2.22,226.02,225.98,2.2118]
[1733185050895,2.22,226.02,225.91,1.3138]
[1733185051095,2.22,226.02,225.92,15.87939041]
[1733185051301,2.22,226.02,225.91,1.3138]
[1733185051302,2.22,226.02,225.93,15.87939041]
[1733185051502,2.22,226.02,225.97,2.2119]
[1733185051801,2.22,226.02,225.98,3.45204139]
[1733185051996,2.22,226.02,225.99,5.66374139]
[1733185052198,2.22,226.02,225.92,4.2689959]
[1733185052401,2.2,226.06,225.93,22.37646305]
[1733185052600,2.2,226.06,225.94,20.17646305]
[1733185052797,2.2,226.06,225.95,20.17646305]
[1733185052995,2.2,226.06,225.96,15.90746715]
[1733185053202,2.2,226.06,226.0,2.2115]
[1733185053396,2.2,226.06,226.01,3.45744189]
[1733185053597,2.2,226.06,226.02,3.45744189]
[1733185053899,2.2,226.06,225.95,4.2689959]
[1733185054103,2.2,226.06,225.96,15.91894839]
[1733185054303,2.2,226.06,225.97,15.91894839]
[1733185054503,2.2,226.06,225.92,17.96138638]
[1733185054706,18.78698638,226.06,225.98,5.54370842]
[1733185054906,18.78698638,226.06,225.99,9.00852618]
[1733185055106,18.78698638,226.06,226.0,9.00856212]
[1733185055303,4.066,226.22,226.01,9.00984322]
[1733185055503,2.2,226.19,225.96,4.28431087]
[1733185055703,2.2,226.19,225.98,4.28431087]
[1733185055704,16.58698638,226.16,225.98,4.28431087]
[1733185055900,2.2102,226.14,226.07,2.2108]
[1733185056205,2.2102,226.14,226.01,4.28431087]
[1733185056206,2.2,226.13,226.02,4.28431087]
[1733185056407,2.2,226.13,226.06,2.211]
[1733185056708,2.2,226.13,226.07,15.95376946]
[1733185056905,2.2,226.13,226.09,2.2106]
[1733185057109,2.2,226.13,226.05,4.28431087]
[1733185057407,2.2,226.13,226.06,20.24097535]
[1733185057603,2.7172,226.22,226.07,20.24097535]
[1733185057805,2.2,226.21,226.08,20.24097535]
[1733185058007,2.2,226.21,226.09,15.95666448]
[1733185058206,2.2,226.21,226.1,9.01898427]
[1733185058402,2.2,226.21,226.11,9.01898427]
[1733185058606,2.2,226.21,226.12,9.01898427]
[1733185058907,2.2,226.21,226.13,3.4688401]
[1733185059101,46.06,226.23,226.14,3.4688401]
[1733185059102,2.2,226.23,226.14,3.4688401]
[1733185059298,4.4093,226.23,226.17,2.2099]
[1733185059503,4.4093,226.23,226.09,4.28431087]
[1733185059504,2.2,226.23,226.09,4.28431087]
[1733185059802,2.2,226.23,226.19,2.2097]
[1733185060809,2.2,226.23,226.12,4.28431087]
[1733185061104,2.2,226.23,226.13,19.65180823]
[1733185061300,2.2,226.23,226.14,19.65180823]
[1733185061503,2.2,226.23,226.15,15.36438315]
[1733185061703,2.36,226.29,226.16,34.31136953]
[1733185061902,2.36,226.29,226.17,19.65180823]
[1733185062107,2.36,226.29,226.21,2.2095]
[1733185062307,2.2087,226.3,226.22,3.34008329]
[1733185062604,2.36,226.33,226.23,3.34008329]
[1733185062805,2.36,226.33,226.24,3.34008329]
[1733185063004,2.36,226.33,226.25,3.34008329]
[1733185063307,2.36,226.33,226.22,2.7001]
[1733185063511,2.36,226.33,226.23,3.33622821]
[1733185063808,4.5684,226.33,226.24,3.33622821]
[1733185064008,2.36,226.33,226.27,2.2089]
[1733185064398,2.36,226.33,226.22,2.7001]
[1733185064602,2.36,226.33,226.23,3.33538154]
[1733185064803,2.36,226.33,226.24,3.33538154]
[1733185065006,4.5684,226.33,226.22,2.7001]
[1733185065205,4.5684,226.33,226.23,3.33542373]
[1733185065406,2.36,226.33,226.28,2.2088]
[1733185065607,2.36,226.33,226.22,2.7001]
[1733185066610,4.5684,226.33,226.27,2.2089]
[1733185069610,2.36,226.33,226.22,2.7001]
[1733185069812,2.36,226.33,226.24,16.58698638]
[1733185070214,2.36,226.37,226.24,16.58698638]
[1733185070408,4.568,226.37,226.24,16.58698638]
[1733185070611,16.58698638,226.42,226.24,16.58698638]
[1733185070808,2.36,226.41,226.33,2.2083]
[1733185071411,2.36,226.41,226.27,2.36]
[1733185071412,2.36,226.41,226.34,2.2082]
[1733185072014,2.36,226.41,226.31,2.2085]
[1733185072015,2.2077,226.4,226.31,2.2085]
[1733185072209,2.36,226.41,226.27,2.36]
[1733185072415,2.36,226.41,226.28,16.58698638]
[1733185072612,75.04960812,226.46,226.32,2.6047]
[1733185072922,2.36,226.45,226.33,1.322]
[1733185073123,4.5673,226.45,226.38,2.2078]
[1733185073322,2.36,226.45,226.33,1.322]
[1733185073919,2.2076,226.41,226.36,2.208]
[1733185074225,2.36,226.45,226.33,1.322]
[1733185074820,75.04960812,226.46,226.33,1.322]
[1733185075022,2.36,226.45,226.33,1.322]
[1733185075921,2.2076,226.41,226.34,2.2081]
[1733185076325,2.2076,226.41,226.33,1.322]
[1733185076520,2.36,226.45,226.33,1.322]
[1733185077519,2.2075,226.42,226.33,1.322]
[1733185077923,2.36,226.45,226.33,1.322]
[1733185078222,2.2074,226.43,226.37,2.2079]
[1733185078631,2.36,226.45,226.37,2.2079]
[1733185078922,2.36,226.44,226.39,2.2077]
[1733185079319,58.46262174,226.46,226.33,1.322]
[1733185079518,60.82262174,226.46,226.36,2.208]